[Event "Championnat du monde jeunes U12F"]
[Date "2024.11.23"]
[White "Alcantara, Levanah"]
[Black "Potikha, Shelley"]
[WhiteElo "1753"]
[BlackElo "1561"]
[Round "8.24"]
[Result "1-0"]
[TimeControl "5400+30"]

1. d4 {[%clk 1:30:57]} 1... e6 {[%clk 1:29:36]} 2. Bf4 {[%clk 1:31:07]} 2... Nf6
{[%clk 1:28:49]} 3. e3 {[%clk 1:31:19]} 3... c5 {[%clk 1:28:33]} 4. c3 {[%clk
1:31:35]} 4... Nc6 {[%clk 1:28:53]} 5. Nd2 {[%clk 1:31:47]} 5... Be7 {[%clk
1:28:26]} 6. Bd3 {[%clk 1:31:49]} 6... O-O {[%clk 1:28:22]} 7. Ngf3 {[%clk
1:30:40]} 7... Nh5 {[%clk 1:27:02]} 8. Bg3 {[%clk 1:30:55]} 8... cxd4 {[%clk
1:26:43]} 9. exd4 {[%clk 1:27:16]} 9... f5 {[%clk 1:26:31]} 10. Ne5 {[%clk
1:17:05]} 10... g6 {[%clk 1:25:07]} 11. f4 {[%clk 1:06:11]} 11... d6 {[%clk
1:21:03]} 12. Nef3 {[%clk 1:03:43]} 12... Bd7 {[%clk 1:15:53]} 13. Qe2 {[%clk
1:01:14]} 13... Qc7 {[%clk 1:09:27]} 14. O-O {[%clk 0:54:28]} 14... Nxg3 {[%clk
1:06:30]} 15. hxg3 {[%clk 0:54:34]} 15... a6 {[%clk 1:04:06]} 16. Bc4 {[%clk
0:52:02]} 16... Rf6 {[%clk 0:59:14]} 17. Rae1 {[%clk 0:44:36]} 17... b5 {[%clk
0:57:51]} 18. Bb3 {[%clk 0:37:49]} 18... Na5 {[%clk 0:49:47]} 19. Ng5 {[%clk
0:32:07]} 19... Nxb3 {[%clk 0:48:31]} 20. Nxb3 {[%clk 0:31:15]} 20... Re8 {[%clk
0:39:46]} 21. Kf2 {[%clk 0:28:00]} 21... h6 {[%clk 0:28:47]} 22. Nf3 {[%clk
0:27:43]} 22... b4 {[%clk 0:22:35]} 23. c4 {[%clk 0:22:21]} 23... d5 {[%clk
0:20:26]} 24. Nbd2 {[%clk 0:17:14]} 24... dxc4 {[%clk 0:19:23]} 25. Nxc4 {[%clk
0:16:09]} 25... Bb5 {[%clk 0:19:23]} 26. b3 Rc8 {[%clk 0:09:04]} 27. Rc1 {[%clk
0:15:55]} 27... Qa7 {[%clk 0:07:07]} 28. Qe5 {[%clk 0:14:00]} 28... Qb8 {[%clk
0:04:03]} 29. Rh1 {[%clk 0:12:50]} 29... Kg7 {[%clk 0:03:09]} 30. Rhd1 {[%clk
0:10:59]} 30... Bxc4 {[%clk 0:02:32]} 31. Qxb8 {[%clk 0:10:28]} 31... Rxb8
{[%clk 0:02:51]} 32. Rxc4 {[%clk 0:10:35]} 32... Rff8 {[%clk 0:02:11]} 33. Rc6
{[%clk 0:09:23]} 33... Kf7 {[%clk 0:01:14]} 34. Ne5+ {[%clk 0:09:38]} 34... Kg7
{[%clk 0:01:01]} 35. Rxe6 {[%clk 0:08:15]} 35... Bf6 {[%clk 0:01:20]} 36. Nd7
{[%clk 0:06:28]} 36... Rbe8 37. Nxf8 {[%clk 0:06:35]} 37... Rxf8 {[%clk
0:01:41]} 38. Rxa6 {[%clk 0:06:34]} 38... Rd8 {[%clk 0:01:52]} 39. d5 {[%clk
0:06:48]} 39... Bc3 {[%clk 0:02:05]} 40. d6 {[%clk 0:06:43]} 40... g5 {[%clk
0:02:20]} 41. d7 {[%clk 0:06:48]} 41... gxf4 {[%clk 0:01:48]} 42. gxf4 {[%clk
0:07:02]} 42... Bf6 {[%clk 0:01:28]} 43. Rc6 {[%clk 0:06:07]} 43... Kf7 {[%clk
0:01:18]} 44. Rc8 {[%clk 0:06:02]} 44... Ke7 {[%clk 0:01:25]} 45. Rxd8 {[%clk
0:05:14]} 45... Kxd8 {[%clk 0:01:53]} 46. Ke3 {[%clk 0:05:13]} 46... Bc3 {[%clk
0:02:01]} 47. Rd5 {[%clk 0:05:01]} 47... Bg7 {[%clk 0:01:23]} 48. Rxf5 {[%clk
0:05:18]} 48... Bc3 {[%clk 0:01:10]} 49. Rd5 {[%clk 0:05:22]} 49... Bg7 {[%clk
0:01:10]} 50. g4 {[%clk 0:05:40]} 50... Bc3 {[%clk 0:01:27]} 51. Ke4 {[%clk
0:05:37]} 51... Bg7 {[%clk 0:01:31]} 52. Rd6 {[%clk 0:05:26]} 52... Bf8 {[%clk
0:01:47]} 53. Ke5 {[%clk 0:05:20]} 53... h5 {[%clk 0:01:47]} 54. g5 {[%clk
0:05:20]} 54... Bxd6+ {[%clk 0:01:47]} 55. Kxd6 {[%clk 0:05:20]} 55... h4 {[%clk
0:01:38]} 56. g6 {[%clk 0:05:41]} 56... h3 {[%clk 0:01:38]} 57. g7 {[%clk
0:05:41]} 1-0

[Variant "Standard"]
[Site "Europe Echecs"]

[Event "Championnat du monde jeunes U12F"]
[Date "2024.11.23"]
[White "Bogomolnikova, Zlata"]
[Black "Lukin, Yesenia"]
[WhiteElo "1628"]
[BlackElo "1732"]
[Round "8.25"]
[Result "1-0"]
[TimeControl "5400+30"]

1. d4 {[%clk 1:30:56]} 1... Nf6 {[%clk 1:30:30]} 2. c4 {[%clk 1:31:15]} 2... e6
{[%clk 1:30:58]} 3. Nc3 {[%clk 1:31:37]} 3... d5 {[%clk 1:31:21]} 4. cxd5 {[%clk
1:31:11]} 4... exd5 {[%clk 1:31:04]} 5. Bg5 {[%clk 1:31:27]} 5... Be7 {[%clk
1:30:01]} 6. Qc2 {[%clk 1:28:57]} 6... h6 {[%clk 1:24:52]} 7. Bh4 {[%clk
1:29:05]} 7... c6 {[%clk 1:23:07]} 8. e3 {[%clk 1:28:56]} 8... O-O {[%clk
1:21:49]} 9. Bd3 {[%clk 1:26:45]} 9... Be6 {[%clk 1:16:38]} 10. Nge2 {[%clk
1:25:56]} 10... Nbd7 {[%clk 1:11:37]} 11. O-O {[%clk 1:25:18]} 11... Nh5 {[%clk
1:06:58]} 12. Bxe7 {[%clk 1:18:57]} 12... Qxe7 {[%clk 1:06:49]} 13. Ng3 {[%clk
1:12:17]} 13... Nxg3 {[%clk 0:52:24]} 14. hxg3 {[%clk 1:12:04]} 14... Qg5 {[%clk
0:50:27]} 15. Ne2 {[%clk 1:04:52]} 15... Rfe8 {[%clk 0:39:47]} 16. Nf4 {[%clk
1:03:22]} 16... Nf6 {[%clk 0:35:28]} 17. b4 {[%clk 0:48:00]} 17... Nh5 {[%clk
0:29:50]} 18. Nxh5 {[%clk 0:45:54]} 18... Qxh5 {[%clk 0:30:09]} 19. a4 {[%clk
0:44:17]} 19... Rec8 {[%clk 0:28:06]} 20. Qd2 {[%clk 0:42:46]} 20... Bd7 {[%clk
0:26:58]} 21. Rfc1 {[%clk 0:42:25]} 21... Rc7 {[%clk 0:26:20]} 22. Rc5 {[%clk
0:38:11]} 22... b6 {[%clk 0:23:49]} 23. Rc3 {[%clk 0:37:36]} 23... a5 {[%clk
0:21:11]} 24. b5 {[%clk 0:36:35]} 24... Rac8 {[%clk 0:21:24]} 25. Rac1 {[%clk
0:36:51]} 25... Qg5 {[%clk 0:19:37]} 26. R1c2 {[%clk 0:34:45]} 26... Qe7 {[%clk
0:13:51]} 27. Qc1 {[%clk 0:33:39]} 27... c5 {[%clk 0:09:02]} 28. dxc5 {[%clk
0:31:28]} 28... Rxc5 {[%clk 0:09:23]} 29. Qb2 {[%clk 0:28:04]} 29... Rxc3 {[%clk
0:02:23]} 30. Rxc3 {[%clk 0:28:02]} 30... Qf6 {[%clk 0:01:51]} 31. Rxc8+ {[%clk
0:27:30]} 31... Bxc8 {[%clk 0:02:14]} 32. Qc2 {[%clk 0:20:27]} 32... Qd8 {[%clk
0:01:11]} 33. Qc6 {[%clk 0:20:13]} 33... Be6 {[%clk 0:01:06]} 34. Kh2 {[%clk
0:15:41]} 34... g6 {[%clk 0:00:48]} 35. Bxg6 {[%clk 0:15:10]} 35... fxg6 36. Qc5
1-0

[Variant "Standard"]
[Site "Europe Echecs"]

[Event "Championnat du monde jeunes U12F"]
[Date "2024.11.23"]
[White "Chen, Pin-I"]
[Black "Ribreau, Anna"]
[WhiteElo "1601"]
[BlackElo "1726"]
[Round "8.26"]
[Result "0-1"]
[TimeControl "5400+30"]

1. d4 {[%clk 1:30:58]} 1... d6 {[%clk 1:24:17]} 2. c4 {[%clk 1:31:08]} 2... e5
{[%clk 1:23:58]} 3. dxe5 {[%clk 1:20:31]} 3... dxe5 {[%clk 1:23:57]} 4. Qxd8+
{[%clk 1:20:41]} 4... Kxd8 {[%clk 1:24:20]} 5. Nc3 {[%clk 1:20:51]} 5... Be6
{[%clk 1:24:04]} 6. b3 {[%clk 1:20:02]} 6... c6 {[%clk 1:22:55]} 7. Nf3 {[%clk
1:20:12]} 7... f6 {[%clk 1:21:56]} 8. g3 {[%clk 1:18:20]} 8... Nd7 {[%clk
1:19:52]} 9. Bd2 {[%clk 1:17:52]} 9... Kc7 {[%clk 1:18:56]} 10. Bg2 {[%clk
1:17:47]} 10... Bc5 {[%clk 1:16:57]} 11. O-O-O {[%clk 1:12:33]} 11... Bf5 {[%clk
1:13:22]} 12. Kb2 {[%clk 1:03:51]} 12... Nh6 {[%clk 1:10:52]} 13. h3 {[%clk
1:01:06]} 13... Nb6 {[%clk 1:06:23]} 14. e3 {[%clk 0:57:09]} 14... a5 {[%clk
1:05:31]} 15. a4 {[%clk 0:48:47]} 15... Bb4 {[%clk 1:02:23]} 16. Na2 {[%clk
0:41:20]} 16... Bxd2 {[%clk 1:00:30]} 17. Nxd2 {[%clk 0:39:09]} 17... Nd7 {[%clk
0:58:08]} 18. Nc3 {[%clk 0:38:22]} 18... Nc5 {[%clk 0:57:12]} 19. Nde4 {[%clk
0:37:50]} 19... Nxe4 {[%clk 0:54:49]} 20. Nxe4 {[%clk 0:38:11]} 20... Rhd8
{[%clk 0:54:16]} 21. g4 {[%clk 0:34:42]} 21... Bxe4 {[%clk 0:51:46]} 22. Bxe4
{[%clk 0:35:04]} 22... g6 {[%clk 0:52:06]} 23. Kc2 {[%clk 0:34:00]} 23... Nf7
{[%clk 0:48:40]} 24. Rxd8 {[%clk 0:29:32]} 24... Rxd8 {[%clk 0:49:02]} 25. Rd1
{[%clk 0:27:53]} 25... Rxd1 {[%clk 0:47:56]} 26. Kxd1 {[%clk 0:28:21]} 26... Kd6
{[%clk 0:48:06]} 27. Kd2 {[%clk 0:28:40]} 27... Kc5 {[%clk 0:47:57]} 28. Kc3
{[%clk 0:28:53]} 28... Nd6 {[%clk 0:48:14]} 29. Bg2 {[%clk 0:28:19]} 29... b5
{[%clk 0:48:16]} 30. cxb5 {[%clk 0:27:07]} 30... cxb5 {[%clk 0:48:36]} 31. f3
{[%clk 0:26:21]} 31... bxa4 {[%clk 0:47:41]} 32. bxa4 {[%clk 0:26:38]} 32... Nc4
{[%clk 0:48:04]} 33. e4 {[%clk 0:24:04]} 33... Nb6 {[%clk 0:47:55]} 34. Bf1
{[%clk 0:21:42]} 34... Nxa4+ {[%clk 0:47:38]} 35. Kb3 {[%clk 0:21:50]} 35... Nb6
{[%clk 0:47:49]} 36. Kc3 {[%clk 0:21:46]} 36... Nc8 {[%clk 0:45:01]} 37. Bc4
{[%clk 0:17:32]} 37... Nd6 {[%clk 0:45:02]} 38. Ba2 {[%clk 0:16:40]} 38... Nb5+
{[%clk 0:45:07]} 39. Kd3 {[%clk 0:16:52]} 39... Nd4 {[%clk 0:44:22]} 40. Ke3
{[%clk 0:16:41]} 40... Nc2+ {[%clk 0:44:40]} 41. Kd2 {[%clk 0:16:53]} 41... Nd4
{[%clk 0:44:39]} 42. Ke3 {[%clk 0:17:10]} 42... Nc2+ {[%clk 0:43:29]} 43. Kd2
{[%clk 0:17:32]} 43... Nb4 {[%clk 0:43:46]} 44. Bb3 {[%clk 0:16:46]} 44... Kd4
{[%clk 0:43:56]} 45. h4 {[%clk 0:17:01]} 45... h6 {[%clk 0:41:33]} 46. h5 {[%clk
0:16:49]} 46... gxh5 {[%clk 0:40:30]} 47. gxh5 {[%clk 0:17:14]} 47... Nd3 {[%clk
0:40:20]} 48. Ba2 {[%clk 0:16:44]} 48... Nf4 {[%clk 0:37:00]} 49. Bf7 {[%clk
0:15:39]} 49... Nh3 {[%clk 0:35:20]} 50. Ke2 {[%clk 0:14:48]} 50... Kc3 {[%clk
0:35:31]} 51. Be8 {[%clk 0:13:29]} 51... Kb3 {[%clk 0:35:15]} 52. Kf1 {[%clk
0:13:37]} 52... a4 {[%clk 0:32:30]} 53. Kg2 {[%clk 0:13:25]} 53... Ng5 {[%clk
0:31:27]} 54. Bc6 {[%clk 0:12:17]} 54... a3 {[%clk 0:31:40]} 55. Bd5+ {[%clk
0:12:37]} 55... Kb2 {[%clk 0:31:44]} 56. Kg3 {[%clk 0:12:58]} 56... a2 {[%clk
0:31:47]} 57. Bxa2 {[%clk 0:13:18]} 57... Kxa2 {[%clk 0:32:14]} 58. Kg4 {[%clk
0:13:23]} 58... Kb3 {[%clk 0:21:53]} 59. f4 {[%clk 0:02:46]} 59... Nxe4 {[%clk
0:18:04]} 60. fxe5 {[%clk 0:03:03]} 60... fxe5 {[%clk 0:17:45]} 61. Kf5 {[%clk
0:03:24]} 61... Ng3+ {[%clk 0:18:01]} 62. Kxe5 {[%clk 0:03:48]} 62... Nxh5
{[%clk 0:18:24]} 63. Kf5 {[%clk 0:04:12]} 63... Ng7+ {[%clk 0:18:45]} 64. Kg6
{[%clk 0:03:53]} 64... h5 {[%clk 0:19:12]} 65. Kg5 {[%clk 0:04:15]} 65... Kc4
{[%clk 0:19:34]} 66. Kf4 {[%clk 0:04:27]} 66... Kd4 {[%clk 0:19:58]} 67. Kg3
{[%clk 0:04:37]} 67... Ke4 {[%clk 0:20:19]} 68. Kh3 {[%clk 0:04:37]} 68... Kf4
{[%clk 0:19:33]} 69. Kh4 {[%clk 0:04:59]} 69... Kf3 {[%clk 0:19:55]} 70. Kh3
{[%clk 0:05:21]} 70... Nf5 {[%clk 0:20:20]} 71. Kh2 {[%clk 0:05:45]} 71... Kg4
{[%clk 0:18:39]} 72. Kg2 {[%clk 0:06:09]} 72... Ne3+ {[%clk 0:18:11]} 73. Kh2
{[%clk 0:06:13]} 73... Kh4 {[%clk 0:18:10]} 74. Kg1 {[%clk 0:06:31]} 74... Kg3
{[%clk 0:18:23]} 75. Kh1 {[%clk 0:06:57]} 75... Ng4 {[%clk 0:18:43]} 76. Kg1
{[%clk 0:07:22]} 76... Nf2 {[%clk 0:19:03]} 77. Kf1 {[%clk 0:07:48]} 77... h4
{[%clk 0:19:27]} 78. Kg1 {[%clk 0:08:12]} 78... h3 {[%clk 0:19:51]} 79. Kf1
{[%clk 0:08:36]} 79... h2 {[%clk 0:20:16]} 80. Ke2 {[%clk 0:09:03]} 80... h1=Q
{[%clk 0:20:34]} 0-1

[Variant "Standard"]
[Site "Europe Echecs"]

[Event "Championnat du monde jeunes U12F"]
[Date "2024.11.23"]
[White "Zavivaeva, Angelina"]
[Black "Oksanen, Maria"]
[WhiteElo "1499"]
[BlackElo "1725"]
[Round "8.27"]
[Result "1/2-1/2"]
[TimeControl "5400+30"]

1. e4 {[%clk 1:30:58]} 1... c5 {[%clk 1:30:52]} 2. Nf3 {[%clk 1:31:25]} 2... d6
{[%clk 1:31:17]} 3. d4 {[%clk 1:31:52]} 3... cxd4 {[%clk 1:31:41]} 4. Nxd4
{[%clk 1:32:18]} 4... Nf6 {[%clk 1:32:05]} 5. Nc3 {[%clk 1:32:46]} 5... g6
{[%clk 1:32:28]} 6. Be3 {[%clk 1:33:12]} 6... Bg7 {[%clk 1:32:50]} 7. f3 {[%clk
1:33:36]} 7... Nc6 {[%clk 1:33:17]} 8. Qd2 {[%clk 1:34:01]} 8... O-O {[%clk
1:33:41]} 9. g4 {[%clk 1:34:28]} 9... Nxd4 {[%clk 1:33:44]} 10. Bxd4 {[%clk
1:34:54]} 10... Be6 {[%clk 1:34:07]} 11. O-O-O {[%clk 1:35:03]} 11... Qc7 {[%clk
1:34:10]} 12. Kb1 {[%clk 1:34:55]} 12... Rfc8 {[%clk 1:34:19]} 13. h4 {[%clk
1:34:58]} 13... h5 {[%clk 1:34:43]} 14. gxh5 {[%clk 1:33:47]} 14... Nxh5 {[%clk
1:35:07]} 15. Bh3 {[%clk 1:31:50]} 15... Bxh3 {[%clk 1:35:31]} 16. Rxh3 {[%clk
1:32:18]} 16... Qd7 {[%clk 1:35:49]} 17. Rh2 {[%clk 1:31:24]} 17... Rc4 {[%clk
1:35:31]} 18. Bxg7 {[%clk 1:31:07]} 18... Kxg7 {[%clk 1:35:55]} 19. Rg1 {[%clk
1:30:34]} 19... Rac8 {[%clk 1:32:39]} 20. Nd5 {[%clk 1:23:20]} 20... e6 {[%clk
1:12:49]} 21. Ne3 {[%clk 1:09:35]} 21... R4c5 {[%clk 1:11:22]} 22. Ng4 {[%clk
1:06:37]} 22... Kf8 {[%clk 1:09:52]} 23. e5 {[%clk 1:02:38]} 23... Rd5 {[%clk
1:05:30]} 24. Qh6+ {[%clk 0:53:46]} 24... Ke7 {[%clk 1:05:52]} 25. Qg5+ {[%clk
0:51:22]} 25... Ke8 {[%clk 1:06:17]} 26. Rd2 {[%clk 0:32:21]} 26... Rxd2 {[%clk
1:03:00]} 27. Qxd2 {[%clk 0:32:44]} 27... dxe5 {[%clk 1:03:19]} 28. Qxd7+ {[%clk
0:30:36]} 28... Kxd7 {[%clk 1:03:43]} 29. Nxe5+ {[%clk 0:30:53]} 29... Ke7
{[%clk 1:04:08]} 30. Rd1 {[%clk 0:30:07]} 30... Rc7 {[%clk 1:04:34]} 31. c3
{[%clk 0:29:15]} 31... Kf6 {[%clk 1:02:30]} 32. Nd3 {[%clk 0:25:55]} 32... Kf5
{[%clk 1:01:39]} 33. Kc2 {[%clk 0:24:33]} 33... Nf4 {[%clk 1:01:43]} 34. Nf2
{[%clk 0:21:02]} 34... Ng2 {[%clk 0:59:26]} 35. Rd4 {[%clk 0:19:36]} 35... Ne1+
{[%clk 0:58:57]} 36. Kb3 {[%clk 0:13:00]} 36... Nxf3 {[%clk 0:58:47]} 37. Rb4
{[%clk 0:12:10]} 37... a6 {[%clk 0:57:13]} 38. Nd3 {[%clk 0:10:54]} 38... e5
{[%clk 0:56:07]} 39. Nf2 {[%clk 0:05:15]} 39... b5 {[%clk 0:55:52]} 40. a4
{[%clk 0:03:40]} 40... Rb7 {[%clk 0:48:21]} 41. Ka2 {[%clk 0:01:13]} 41... Nd2
{[%clk 0:47:38]} 42. Nd3 {[%clk 0:00:41]} 42... e4 {[%clk 0:45:57]} 43. Nc1
{[%clk 0:00:34]} 43... Rd7 {[%clk 0:44:14]} 44. axb5 {[%clk 0:00:35]} 44... Rd5
{[%clk 0:43:09]} 45. c4 {[%clk 0:00:37]} 45... Rc5 {[%clk 0:43:13]} 46. b3
{[%clk 0:00:40]} 46... axb5 {[%clk 0:41:01]} 47. Rxb5 {[%clk 0:00:39]} 47...
Rxb5 {[%clk 0:41:27]} 48. cxb5 {[%clk 0:01:02]} 48... Ke5 {[%clk 0:41:53]} 49.
Ka3 {[%clk 0:00:39]} 49... Kd6 {[%clk 0:42:06]} 50. Ka4 {[%clk 0:00:54]} 50...
Kc7 {[%clk 0:42:24]} 51. Ka5 {[%clk 0:00:34]} 51... Kb7 {[%clk 0:42:49]} 52. b6
{[%clk 0:00:41]} 52... e3 {[%clk 0:42:39]} 53. Kb5 {[%clk 0:00:41]} 53... f5
{[%clk 0:40:45]} 54. b4 {[%clk 0:00:34]} 54... f4 {[%clk 0:40:57]} 55. Nd3
{[%clk 0:00:37]} 55... e2 {[%clk 0:39:40]} 56. Nc5+ {[%clk 0:00:34]} 56... Kc8
{[%clk 0:39:32]} 57. Kc6 {[%clk 0:00:35]} 57... e1=Q {[%clk 0:37:45]} 58. b7+
{[%clk 0:01:00]} 58... Kd8 {[%clk 0:38:02]} 59. b8=Q+ {[%clk 0:01:24]} 59... Ke7
{[%clk 0:38:22]} 60. Qd6+ {[%clk 0:01:31]} 60... Kf7 {[%clk 0:37:03]} 61. Qxf4+
{[%clk 0:01:03]} 61... Kg7 {[%clk 0:36:20]} 62. Qd4+ {[%clk 0:01:10]} 62... Kh7
{[%clk 0:36:18]} 63. Qd7+ {[%clk 0:00:34]} 63... Kh6 {[%clk 0:36:40]} 64. b5
{[%clk 0:00:34]} 64... Nc4 {[%clk 0:36:44]} 65. Qd4 {[%clk 0:00:36]} 65... Qe8+
{[%clk 0:35:58]} 66. Kb7 {[%clk 0:00:34]} 66... Qxb5+ {[%clk 0:36:15]} 67. Kc7
{[%clk 0:00:37]} 67... Qb6+ {[%clk 0:35:49]} 68. Kd7 {[%clk 0:00:38]} 1/2-1/2

[Variant "Standard"]
[Site "Europe Echecs"]

[Event "Championnat du monde jeunes U12F"]
[Date "2024.11.23"]
[White "Kovalskyy, Alicia"]
[Black "Saharkar, Sharvari"]
[WhiteElo "1871"]
[BlackElo "1581"]
[Round "8.28"]
[Result "1-0"]
[TimeControl "5400+30"]

1. e4 {[%clk 1:30:58]} 1... e5 {[%clk 1:29:30]} 2. Nf3 {[%clk 1:31:22]} 2... Nc6
{[%clk 1:29:20]} 3. Bc4 {[%clk 1:31:45]} 3... Bc5 {[%clk 1:28:50]} 4. c3 {[%clk
1:32:09]} 4... Nf6 {[%clk 1:27:56]} 5. d3 {[%clk 1:32:31]} 5... d6 {[%clk
1:26:26]} 6. O-O {[%clk 1:32:42]} 6... a6 {[%clk 1:25:08]} 7. Bb3 {[%clk
1:31:14]} 7... Ba7 {[%clk 1:22:38]} 8. Nbd2 {[%clk 1:27:30]} 8... O-O {[%clk
1:21:50]} 9. h3 {[%clk 1:23:19]} 9... Be6 {[%clk 1:20:40]} 10. Bc2 {[%clk
1:21:34]} 10... Ne7 {[%clk 1:19:31]} 11. Ng5 {[%clk 1:14:51]} 11... Bd7 {[%clk
1:17:01]} 12. Nc4 {[%clk 1:12:24]} 12... h6 {[%clk 1:14:28]} 13. Nf3 {[%clk
1:12:36]} 13... Ng6 {[%clk 1:10:49]} 14. Re1 {[%clk 1:03:15]} 14... b5 {[%clk
1:06:09]} 15. Ne3 {[%clk 1:01:17]} 15... Nf4 {[%clk 1:02:12]} 16. Nf5 {[%clk
0:59:03]} 16... N6h5 {[%clk 0:57:50]} 17. d4 {[%clk 0:49:08]} 17... Re8 {[%clk
0:49:19]} 18. g3 {[%clk 0:28:40]} 18... Nxh3+ {[%clk 0:34:58]} 19. Kg2 {[%clk
0:27:49]} 19... Nf6 {[%clk 0:32:11]} 20. Kxh3 {[%clk 0:25:31]} 20... g6 {[%clk
0:30:33]} 21. Bxh6 {[%clk 0:20:40]} 21... gxf5 {[%clk 0:29:02]} 22. exf5 {[%clk
0:19:40]} 22... e4 {[%clk 0:27:04]} 23. Nh4 {[%clk 0:18:38]} 23... d5 {[%clk
0:20:46]} 24. Rh1 {[%clk 0:12:21]} 24... c5 {[%clk 0:13:21]} 25. dxc5 {[%clk
0:09:56]} 25... Bxc5 {[%clk 0:12:52]} 26. Qd2 {[%clk 0:10:09]} 26... Kh7 {[%clk
0:10:56]} 27. Bg5 {[%clk 0:09:06]} 27... Bc6 {[%clk 0:04:01]} 28. Kg2 {[%clk
0:08:29]} 28... Kg7 {[%clk 0:02:21]} 29. Bh6+ {[%clk 0:07:18]} 29... Kh7 {[%clk
0:02:27]} 30. Qg5 {[%clk 0:04:47]} 30... Rg8 {[%clk 0:02:46]} 31. Bg7 {[%clk
0:04:19]} 31... Nh5 {[%clk 0:02:05]} 32. Qh6# 1-0

[Variant "Standard"]
[Site "Europe Echecs"]

[Event "Championnat du monde jeunes U12F"]
[Date "2024.11.23"]
[White "Baruch, Amit"]
[Black "Budhram, Kaylee"]
[WhiteElo "1747"]
[BlackElo "1614"]
[Round "8.29"]
[Result "1-0"]
[TimeControl "5400+30"]

1. e4 {[%clk 1:30:57]} 1... c6 {[%clk 1:30:55]} 2. d4 {[%clk 1:31:21]} 2... d5
{[%clk 1:31:20]} 3. exd5 {[%clk 1:31:45]} 3... cxd5 {[%clk 1:31:43]} 4. c4
{[%clk 1:32:10]} 4... Nf6 {[%clk 1:32:05]} 5. Nc3 {[%clk 1:32:29]} 5... g6
{[%clk 1:32:28]} 6. cxd5 {[%clk 1:25:12]} 6... Bg7 {[%clk 1:29:51]} 7. Qb3
{[%clk 1:24:15]} 7... Nbd7 {[%clk 1:24:10]} 8. g3 {[%clk 1:21:35]} 8... O-O
{[%clk 1:16:11]} 9. Bg2 {[%clk 1:19:25]} 9... Nb6 {[%clk 1:14:53]} 10. Nge2
{[%clk 1:18:21]} 10... e6 {[%clk 1:13:32]} 11. dxe6 {[%clk 1:14:48]} 11... Bxe6
{[%clk 1:13:02]} 12. Qd1 {[%clk 1:14:39]} 12... Qc8 {[%clk 1:11:41]} 13. O-O
{[%clk 1:08:56]} 13... Bg4 {[%clk 1:06:21]} 14. Qd3 {[%clk 0:48:04]} 14... Re8
{[%clk 0:59:03]} 15. Be3 {[%clk 0:41:45]} 15... Bf5 {[%clk 0:50:04]} 16. Qb5
{[%clk 0:38:37]} 16... Bd7 {[%clk 0:43:57]} 17. Qb3 {[%clk 0:31:23]} 17... Bc6
{[%clk 0:38:23]} 18. d5 {[%clk 0:29:37]} 18... Bd7 {[%clk 0:28:24]} 19. Bxb6
{[%clk 0:28:54]} 19... axb6 {[%clk 0:28:44]} 20. Qxb6 {[%clk 0:28:58]} 20... Ra6
{[%clk 0:25:27]} 21. Qb4 {[%clk 0:27:24]} 21... Qc7 {[%clk 0:20:06]} 22. Rac1
{[%clk 0:24:30]} 22... Qb6 {[%clk 0:20:01]} 23. Qxb6 {[%clk 0:23:57]} 23... Rxb6
{[%clk 0:20:22]} 24. Rc2 {[%clk 0:21:53]} 24... Bf5 {[%clk 0:19:45]} 25. Rd2
{[%clk 0:21:33]} 25... Bh6 {[%clk 0:17:18]} 26. f4 {[%clk 0:20:27]} 26... Ng4
{[%clk 0:14:51]} 27. Nd4 {[%clk 0:19:40]} 27... Bd7 {[%clk 0:13:45]} 28. Bh3
{[%clk 0:14:51]} 28... Ne3 {[%clk 0:11:30]} 29. Bxd7 {[%clk 0:14:50]} 29... Nxf1
{[%clk 0:11:52]} 30. Kxf1 {[%clk 0:15:08]} 30... Re7 {[%clk 0:11:00]} 31. Bg4
{[%clk 0:14:06]} 31... Bg7 {[%clk 0:11:15]} 32. Ndb5 {[%clk 0:13:44]} 32... f5
{[%clk 0:09:18]} 33. Be2 {[%clk 0:13:21]} 33... Bxc3 {[%clk 0:08:01]} 34. bxc3
{[%clk 0:12:24]} 34... Rd7 {[%clk 0:06:56]} 35. c4 {[%clk 0:10:42]} 35... Rf6
{[%clk 0:07:15]} 36. c5 {[%clk 0:10:43]} 36... Kf8 {[%clk 0:06:20]} 37. Bc4
{[%clk 0:09:32]} 37... h6 {[%clk 0:04:55]} 38. d6 {[%clk 0:09:10]} 38... Kg7
{[%clk 0:02:27]} 39. Nc7 {[%clk 0:07:33]} 39... Kh7 {[%clk 0:02:18]} 40. Bb5
{[%clk 0:06:03]} 40... Rd8 {[%clk 0:02:39]} 41. d7 {[%clk 0:06:15]} 41... Kh8
{[%clk 0:02:03]} 42. Re2 {[%clk 0:06:24]} 42... Kh7 {[%clk 0:01:09]} 43. Ne6
{[%clk 0:06:24]} 43... h5 {[%clk 0:00:53]} 44. Nxd8 {[%clk 0:06:47]} 44... Rf8
{[%clk 0:01:09]} 45. Ne6 {[%clk 0:07:11]} 45... Rh8 {[%clk 0:01:24]} 46. d8=Q
{[%clk 0:07:33]} 46... Rxd8 {[%clk 0:01:47]} 47. Nxd8 {[%clk 0:07:55]} 47... Kh6
{[%clk 0:02:10]} 48. Nxb7 {[%clk 0:08:10]} 48... g5 {[%clk 0:02:22]} 49. Re6+
{[%clk 0:08:33]} 49... Kg7 {[%clk 0:02:45]} 50. fxg5 {[%clk 0:08:48]} 50... Kf7
{[%clk 0:03:09]} 51. Rf6+ {[%clk 0:09:10]} 51... Ke7 {[%clk 0:03:14]} 52. c6
{[%clk 0:09:34]} 52... h4 {[%clk 0:03:41]} 53. c7 {[%clk 0:09:39]} 53... hxg3
{[%clk 0:04:00]} 54. c8=N# {[%clk 0:09:58]} 1-0

[Variant "Standard"]
[Site "Europe Echecs"]